Cogmind - Beta 9.6 @@@ ROGUE MODE // 2020.06.08 @ 22:41:53 Player: aoemica Result: Destroyed by P-80 Master with Gamma Rifle Performance ------------- Evolutions (7) 3500 Regions Visited (23) 4600 Robots Destroyed (212) 1060 Value Destroyed (13590) 13590 Prototype IDs (38) 760 Alien Tech Used (0) 0 Bonus (11249) 11249 TOTAL SCORE: 34759 Bonus ------- Triggered Max Security 1000 High Alert Combat Kills 375 Follower Combat Kills 4502 Entered Garrisons 1600 Used RIF Installer 4000 Aligned with FarCom 300 Friendly Fire -528 Cogmind --------- Core Integrity 0/1300 Matter 257/300 Energy 100/100 System Corruption 31% Temperature Cool (0) Movement Core (550) Ox10 Location -3/Quarantine Parts ------- > --- POWER (1) -------- (None) > --- PROPULSION (4) --- (None) > --- UTILITY (14) ----- High-capacity Storage Unit > --- WEAPON (2) ------- (None) > --- INVENTORY (12) --- Armored Wheel Advanced Cooling System Long-range Terrain Scanner Improved Medium Armor Plating Relay Coupler [Grunt] (45) Relay Coupler [Sentry] (39) Relay Coupler [Sentry] (34) Relay Coupler [Hunter] (30) Improved System Backup Module Gamma Rifle Guided Plasma Cannon Railgun Peak State ------------ > --- POWER ------------ Particle Reactor > --- PROPULSION ------- Heavy Treads Advanced Heavy Treads > --- UTILITY ---------- Advanced Cooling System High-capacity Storage Unit High-capacity Storage Unit High-capacity Storage Unit High-capacity Storage Unit Advanced Powered Armor Advanced Powered Armor Relay Coupler [Swarmer] Relay Coupler [Grunt] Relay Coupler [Sentry] Relay Coupler [Demolisher] Relay Coupler [Specialist] Relay Coupler [Behemoth] Advanced Component Analysis Suite > --- WEAPON ----------- Heavy Neutron Cannon Improved Remote Datajack > --- INVENTORY -------- Particle Reactor Armored Wheel Armored Wheel Armored Wheel Armored Wheel Centrium Wheel Advanced Cooling System Long-range Terrain Scanner Improved Medium Armor Plating Advanced Powered Armor Advanced Force Field Relay Coupler [NC] Relay Coupler [NC] Relay Coupler [NC] Relay Coupler [ARC] Relay Coupler [Swarmer] Relay Coupler [Grunt] Relay Coupler [Brawler] Relay Coupler [Duelist] Relay Coupler [Sentry] Relay Coupler [Sentry] Relay Coupler [Sentry] Relay Coupler [Hunter] Relay Coupler [Hunter] Relay Coupler [Hunter] Relay Coupler [Hunter] Relay Coupler [Hunter] Improved System Backup Module Gamma Rifle Long-range Proton Cannon Guided Plasma Cannon Railgun Railgun Advanced Remote Datajack Chainsword [Rating: 125] Favorites ----------- Power Improved Deuterium Engine Engine Improved Deuterium Engine Power Core Reinforced Fission Core Reactor Particle Reactor Propulsion Armored Wheel Treads Light Treads Leg Flexi-carbon Leg Wheel Armored Wheel Utility High-capacity Storage Unit Device Advanced Heat Sink Storage High-capacity Storage Unit Processor Improved Signal Interpreter Hackware Relay Coupler [Sentry] Protection Improved Medium Armor Plating Weapon Remote Datajack Energy Gun Plasma Rifle Energy Cannon HERF Cannon Ballistic Gun Flak Gun Ballistic Cannon Light Cannon Launcher Heavy Shock Bomb Launcher Special Weapon Remote Datajack Impact Weapon Hammer Slashing Weapon Chainsword Build | -11 -10 -10 -9 -9 -9 -8 -8 -8 -8 -8 -7 -7 -7 -7 -6 -6 -5 -5 -4 -4 -3 -3 -3 ------- Run | Scr Mat Min Mat Min Exi Min Mat Gar Mat Gar Fac Gar Fac Gar Fac Gar Fac Gar Fac Gar Res Gar Qua Slots Evolved 14 | . . . 2 . . . 2 . . . 2 . . . 2 . 2 . 2 . 2 . . Power . | . . . . . . . . . . . . . . . . . . . . . . . . Propulsion 2 | . . . . . . . 1 . . . . . . . 1 . . . . . . . . Utility 12 | . . . 2 . . . 1 . . . 2 . . . 1 . 2 . 2 . 2 . . Weapon . | . . . . . . . . . . . . . . . . . . . . . . . . Parts Attached 474 | 6 13 3 7 14 4 . 15 18 41 25 36 19 17 17 33 20 29 38 45 10 14 42 8 Power 30 | 1 1 . 1 2 . . 2 . 5 2 . 1 1 1 1 . 2 5 1 . 1 2 1 Engine 15 | 1 1 . 1 1 . . 1 . 4 1 . 1 1 1 1 . . 1 . . . . . Core 11 | . . . . 1 . . 1 . 1 1 . . . . . . 2 4 1 . . . . Reactor 4 | . . . . . . . . . . . . . . . . . . . . . 1 2 1 Propulsion 70 | 2 3 1 1 2 . . 3 1 9 3 9 2 3 1 8 1 3 7 2 . 1 6 2 Treads 18 | 2 . . . . . . . . 2 2 3 1 1 1 . . . . . . 1 5 . Leg 13 | . . . . . . . . . 1 . . . . . 7 1 3 1 . . . . . Wheel 39 | . 3 1 1 2 . . 3 1 6 1 6 1 2 . 1 . . 6 2 . . 1 2 Hover . | . . . . . . . . . . . . . . . . . . . . . . . . Flight . | . . . . . . . . . . . . . . . . . . . . . . . . Utility 193 | 1 4 . 3 4 4 . 4 8 15 8 6 10 6 9 9 8 13 14 27 9 8 20 3 Device 52 | . . . . 2 1 . 2 2 3 1 2 3 . 1 4 1 4 3 12 2 3 6 . Storage 14 | 1 3 . . . 2 . . 1 3 1 . . . . 2 . . . . . 1 . . Processor 1 | . . . . . . . . 1 . . . . . . . . . . . . . . . Hackware 69 | . . . . . . . 1 3 3 5 2 4 3 5 2 4 4 8 4 6 3 9 3 Protection 57 | . 1 . 3 2 1 . 1 1 6 1 2 3 3 3 1 3 5 3 11 1 1 5 . Artifact . | . . . . . . . . . . . . . . . . . . . . . . . . Weapon 181 | 2 5 2 2 6 . . 6 9 12 12 21 6 7 6 15 11 11 12 15 1 4 14 2 Energy Gun 10 | 1 2 . . 2 . . . . . 3 . . . . . 2 . . . . . . . Energy Cannon 38 | . . . . . . . . 1 3 1 4 2 . 2 2 . 4 6 6 1 3 2 1 Ballistic Gun 45 | 1 2 . 2 1 . . 3 2 6 4 4 2 1 . 5 4 1 3 . . . 4 . Ballistic Cannon 12 | . 1 1 . 2 . . 1 3 . . 1 1 1 1 . . . . . . . . . Launcher 14 | . . 1 . . . . 1 1 . 2 1 . 1 2 2 1 . 1 . . . 1 . Special Weapon 31 | . . . . 1 . . . 2 2 1 4 1 2 1 1 4 3 1 2 . . 5 1 Impact Weapon 1 | . . . . . . . 1 . . . . . . . . . . . . . . . . Slashing Weapon 30 | . . . . . . . . . 1 1 7 . 2 . 5 . 3 1 7 . 1 2 . Piercing Weapon . | . . . . . . . . . . . . . . . . . . . . . . . . Special Melee Weapon . | . . . . . . . . . . . . . . . . . . . . . . . . Unidentified Prototypes 2 | . . . . . . . . . . . . . 1 1 . . . . . . . . . Parts Lost 79 | . 2 1 1 11 . . 1 1 10 7 3 6 1 2 1 3 2 2 1 . . 2 22 Power 8 | . . . . 2 . . . . 2 1 . 1 . . . . . . . . . . 2 Propulsion 24 | . 1 1 1 2 . . 1 1 3 1 3 2 1 1 . 1 . 1 . . . . 4 Utility 25 | . . . . 3 . . . . 2 1 . 1 . . 1 1 1 . 1 . . 1 13 Weapon 22 | . 1 . . 4 . . . . 3 4 . 2 . 1 . 1 1 1 . . . 1 3 Highest Loss Streak 22 | . 1 1 1 11 . . 1 1 6 4 1 2 1 2 1 2 1 2 1 . . 1 22 Average Slot Usage (%) 94 | . 92 99 87 84 97 88 86 86 92 98 99 99 95 90 98 98 98 98 98 96 95 89 79 Engine 3 | . 14 14 11 4 . . 4 . 4 7 7 7 7 7 6 6 2 3 . . . . . Core 2 | . . . . 6 11 11 4 9 4 . . . . . . . 2 1 5 5 1 . . Treads 3 | . 12 . . . . . . . 5 8 7 6 7 6 . . . . . . 3 6 7 Leg 5 | . . . . . . . . . 1 . . . . . 23 26 23 19 . . . . . Wheel 12 | . 14 27 21 20 22 22 23 27 19 18 14 14 11 7 1 . . 3 21 21 14 7 1 Device 5 | . . . . 3 20 11 10 4 6 3 7 2 3 . 6 4 8 3 10 8 12 8 11 Storage 18 | . 14 28 22 22 21 11 9 9 15 19 23 23 23 23 20 20 17 17 15 15 18 19 18 Hackware 17 | . . . . . . . 7 10 10 15 18 14 22 24 17 20 17 22 24 21 19 22 21 Protection 8 | . 6 . 10 8 . 11 8 6 8 5 4 11 3 4 7 5 11 11 10 13 10 8 6 Energy Cannon 2 | . . . . . . . . . 6 1 3 5 . 1 1 1 3 3 1 3 3 2 1 Ballistic Gun 3 | . 12 14 11 7 11 11 13 5 5 11 1 2 4 . 1 3 1 1 . . . 2 . Ballistic Cannon 1 | . 7 13 11 8 11 11 3 4 1 . 2 . . 5 . . . . . . . . . Special Weapon 3 | . . . . 2 . . . 6 1 3 1 5 6 6 4 4 3 5 5 5 4 2 3 Naked Turns . | . . . . . . . . . . . . . . . . . . . . . . . . Heaviest Build 206 | 11 42 42 59 59 98 98 105 106 107 110 121 123 122 124 127 125 139 143 158 157 197 206 198 Greatest Support 140 | 40 40 32 32 32 32 32 42 38 44 48 32 20 28 28 80 76 76 76 48 48 48 140 140 Greatest Overweight (x) 11 | . 1 2 2 5 3 3 4 4 5 4 11 11 11 4 5 2 1 10 3 3 5 8 6 Average Overweight (x) 2 | . . 1 1 1 1 3 2 2 2 2 4 5 4 3 1 1 1 1 2 2 4 3 1 Largest Inventory Capacity 44 | 6 16 16 16 16 36 24 24 44 38 28 28 28 28 28 28 28 28 28 28 28 36 36 36 Average Capacity 27 | 5 6 16 16 16 16 24 24 24 20 21 28 28 28 28 28 28 28 28 28 28 35 36 35 Most Carried 36 | 4 7 9 16 16 22 21 24 24 24 28 28 28 28 28 28 28 28 28 28 28 36 36 36 Average Carried 26 | 2 5 8 13 12 16 20 23 23 19 20 27 26 27 27 27 27 27 27 27 27 33 35 34 Final Capacity 36 | 6 16 16 16 16 24 24 24 24 20 28 28 28 28 28 28 28 28 28 28 28 36 36 12 Final Carried 36 | 4 7 9 16 13 20 21 24 24 20 28 28 28 28 28 28 28 26 28 27 28 34 36 12 Class Distribution -------------------- 49% | Botlord-Mutant 30% | Bothacker-Mutant 7% | Mutant 6% | Hauler-Mutant 5% | Botlord-Assassin Dominant Class ---------------- Mutant | -10/Materials Mutant | -10/Mines Mutant | -9/Materials Mutant | -9/Mines Mutant | -9/Exiles Hauler-Mutant | -8/Mines Hauler-Mutant | -8/Materials Bothacker-Mutant | -8/Garrison Bothacker-Mutant | -8/Materials Bothacker-Mutant | -8/Garrison Bothacker-Mutant | -7/Factory Bothacker-Mutant | -7/Garrison Bothacker-Mutant | -7/Factory Bothacker-Mutant | -7/Garrison Botlord-Mutant | -6/Factory Botlord-Mutant | -6/Garrison Botlord-Mutant | -5/Factory Botlord-Mutant | -5/Garrison Botlord-Mutant | -4/Factory Botlord-Mutant | -4/Garrison Botlord-Mutant | -3/Research Botlord-Mutant | -3/Garrison Botlord-Assassin | -3/Quarantine Resources | -11 -10 -10 -9 -9 -9 -8 -8 -8 -8 -8 -7 -7 -7 -7 -6 -6 -5 -5 -4 -4 -3 -3 -3 ----------- Run | Scr Mat Min Mat Min Exi Min Mat Gar Mat Gar Fac Gar Fac Gar Fac Gar Fac Gar Fac Gar Res Gar Qua Matter Collected 9162 | 188 313 205 240 169 40 20 486 517 851 572 633 440 166 528 383 484 433 605 411 323 249 811 95 Remotely . | . . . . . . . . . . . . . . . . . . . . . . . . Salvage Created 9425 | . 543 199 264 171 . . 708 307 1228 483 1011 476 189 109 580 275 354 1099 529 58 255 587 . Parts 472 | . 38 7 25 5 . . 47 22 63 32 53 15 9 5 17 19 22 23 31 1 9 29 . Haulers Intercepted 7 | . 2 . . . . . 1 . 2 . 2 . . . . . . . . . . . . Recyclers Shooed 9 | . . . . 1 . . . . 1 . 4 . 1 . . . . . 1 . 1 . . Parts Field Recycled . | . . . . . . . . . . . . . . . . . . . . . . . . Retrieved Matter . | . . . . . . . . . . . . . . . . . . . . . . . . Parts Self-Destructed . | . . . . . . . . . . . . . . . . . . . . . . . . Prevented . | . . . . . . . . . . . . . . . . . . . . . . . . Kills | -11 -10 -10 -9 -9 -9 -8 -8 -8 -8 -8 -7 -7 -7 -7 -6 -6 -5 -5 -4 -4 -3 -3 -3 ------- Run | Scr Mat Min Mat Min Exi Min Mat Gar Mat Gar Fac Gar Fac Gar Fac Gar Fac Gar Fac Gar Res Gar Qua Combat Hostiles Destroyed 166 | . 11 5 5 3 . . 11 16 24 15 11 10 1 6 4 11 6 5 9 2 2 9 . Guns 76 | . 10 . 1 . . . 8 8 14 11 3 2 . . 4 6 1 . . . . 8 . Cannons 59 | . 1 2 4 3 . . 1 . 9 2 5 8 1 2 . 2 5 2 8 1 2 1 . AOE 28 | . . 3 . . . . 2 8 1 2 3 . . 3 . 3 . 2 1 . . . . Classes Destroyed 14 | . 5 . 2 2 . . . 2 1 . 2 . . . . . . . . . . . . Worker 2 | . . . . 1 . . . . . . 1 . . . . . . . . . . . . Builder 3 | . . . . . . . . . 3 . . . . . . . . . . . . . . Tunneler 1 | . . . . . . . . . . . 1 . . . . . . . . . . . . Hauler 7 | . 2 . . . . . 1 . 2 . 2 . . . . . . . . . . . . Recycler 20 | . 1 2 . . . . 2 . 3 . 6 . 2 . 3 . . . . . 1 . . Operator 1 | . . . 1 . . . . . . . . . . . . . . . . . . . . Watcher 9 | . 2 . 2 . . . 3 . . . 1 . 1 . . . . . . . . . . Swarmer 61 | . 3 3 . . . . 3 12 5 8 4 1 . 5 . 11 . . . 2 . 4 . Grunt 46 | . 8 2 . 1 . . 4 1 9 5 1 6 . . 1 . . 4 2 . . 2 . Brawler 5 | . . . . 1 . . . . 2 . . . . 1 . . . 1 . . . . . Duelist 2 | . . . . . . . . 1 . 1 . . . . . . . . . . . . . Sentry 29 | . . . 5 . . . 4 1 7 1 1 1 . . 1 1 1 . 2 . 1 3 . Hunter 7 | . . . . . . . . 2 1 1 2 1 . . . . . . . . . . . Programmer 18 | . . . . . . . . . . . 3 1 1 . 2 . 5 . 5 . 1 . . Best Kill Streak 9 | . 3 6 3 2 . . 6 5 9 3 5 2 1 2 2 4 2 2 2 1 1 4 . Combat Bots Only 8 | . 3 5 3 2 . . 5 5 8 3 4 2 1 2 1 4 2 2 2 1 1 4 . Max Kills in Single Turn 3 | . 2 1 1 1 . . 2 3 1 2 2 1 1 2 1 3 1 2 1 1 1 2 . Gunslinging 1 | . 1 . . . . . . . . . . . . . . . . . . . . . . Exploded 3 | . . 1 . . . . 2 3 1 2 2 . . 2 . 3 . 2 1 . . . . Melee . | . . . . . . . . . . . . . . . . . . . . . . . . Uniques/NPCs Destroyed 1 | . . . . 1 . . . . . . . . . . . . . . . . . . . YI-UF0 (-9/Mines) Combat | -11 -10 -10 -9 -9 -9 -8 -8 -8 -8 -8 -7 -7 -7 -7 -6 -6 -5 -5 -4 -4 -3 -3 -3 -------- Run | Scr Mat Min Mat Min Exi Min Mat Gar Mat Gar Fac Gar Fac Gar Fac Gar Fac Gar Fac Gar Res Gar Qua Damage Taken 18539 | . 694 80 293 906 . . 514 424 2331 861 408 946 263 699 174 710 1197 550 868 295 275 1254 4797 Core 2833 | . 128 22 45 141 . . 39 25 242 53 32 107 19 103 30 85 172 55 202 32 . 17 1284 Absorbed by Shields 417 | . . . . . . . . . . . . . . 36 . 112 . 49 . 88 . 132 . Reduced by Siege Mode 18 | . . . . . . . . . . . . . . . . . . . . . . 18 . Core Remaining (%) 66 | 100 . 40 . . . 53 . . . 34 . . . 62 . 86 . 77 . 79 . . . Volleys Fired 1081 | . 63 12 28 42 . . 40 48 102 80 62 90 25 35 31 87 54 101 36 30 35 61 19 Largest 2 | . 2 2 2 2 . . 2 2 2 2 2 2 2 2 2 2 2 1 1 1 1 2 1 Hottest 180 | . 60 55 58 100 . . 63 100 97 94 128 93 76 113 93 103 180 120 110 88 110 123 110 Shots Fired 1400 | . 126 20 49 51 . . 79 58 141 107 89 95 33 36 33 102 76 101 36 30 35 84 19 Gun 583 | . 102 9 21 24 . . 59 37 55 74 25 23 14 . 19 72 6 5 . . . 38 . Cannon 531 | . 24 8 28 14 . . 18 4 76 17 46 54 9 19 2 11 51 74 23 16 14 22 1 Launcher 22 | . . 3 . . . . 2 6 . 2 2 . . 2 . 2 . 3 . . . . . Special 264 | . . . . 13 . . . 11 10 14 16 18 10 15 12 17 19 19 13 14 21 24 18 Kinetic 650 | . 87 17 49 30 . . 77 41 87 66 40 26 23 4 19 35 6 5 . . . 38 . Thermal 353 | . 39 . . 16 . . . 2 40 25 31 51 . 15 2 48 51 5 14 . 8 5 1 Explosive 22 | . . 3 . . . . 2 6 . 2 2 . . 2 . 2 . 3 . . . . . Electromagnetic 126 | . . . . 5 . . . . 4 . . . . . . . . 69 9 16 6 17 . Robot Hit Streak 20 | . 16 6 8 7 . . 14 17 9 10 9 9 8 6 7 8 12 17 11 8 8 13 20 Robot Miss Streak 6 | . 3 3 2 3 . . 6 5 5 6 2 4 2 4 2 6 3 2 2 2 3 3 . Penetration Max 2 | . . . . . . . . . . . . . . . . . . . . . . 2 . Secondary Targets 5 | . 2 . . . . . . . 2 1 . . . . . . . . . . . . . Max Gunslinging Chain 1 | . 1 . . . . . . . 1 1 . . . . . . . . . . . . . Shots Hit Robots 898 | . 82 14 32 31 . . 65 41 91 66 59 53 25 18 27 34 54 51 32 20 24 60 19 Core Hits 402 | . 33 10 14 9 . . 52 30 75 37 27 18 5 6 8 15 11 16 11 2 3 20 . Critical Hits 3 | . . . . . . . . . 1 2 . . . . . . . . . . . . . Critical Kills . | . . . . . . . . . . . . . . . . . . . . . . . . Critical Parts Destroyed 3 | . . . . . . . . . 1 2 . . . . . . . . . . . . . Melee Attacks 188 | . . . . . . . 11 . 1 2 29 . 15 3 21 . 12 6 47 1 1 39 . Impact 11 | . . . . . . . 11 . . . . . . . . . . . . . . . . Slashing 177 | . . . . . . . . . 1 2 29 . 15 3 21 . 12 6 47 1 1 39 . Piercing . | . . . . . . . . . . . . . . . . . . . . . . . . Sneak Attacks 5 | . . . . . . . . . . . . . . . 3 . . . 2 . . . . Combat Hostiles . | . . . . . . . . . . . . . . . . . . . . . . . . Follow-up Attacks . | . . . . . . . . . . . . . . . . . . . . . . . . Damage Inflicted 19477 | . 974 376 525 532 . . 1118 1248 2448 1084 1489 1069 389 519 742 693 1337 1909 1105 279 440 1157 44 Guns 6528 | . 752 91 249 211 . . 926 461 821 701 315 195 268 . 362 365 80 47 . . . 684 . Cannons 9093 | . 222 93 276 173 . . 58 . 1113 205 930 874 121 275 67 106 1257 1301 787 279 440 473 43 Explosions 3076 | . . 192 . . . . 134 787 514 178 244 . . 244 . 222 . 561 . . . . . Melee 631 | . . . . . . . . . . . . . . . 313 . . . 318 . . . . Ramming 1 | . . . . . . . . . . . . . . . . . . . . . . . 1 Kinetic 7851 | . 683 184 525 339 . . 984 461 1396 701 435 252 389 29 362 300 80 47 . . . 684 . Thermal 6158 | . 291 . . 148 . . . . 960 205 810 817 . 246 67 171 1257 175 542 . 312 114 43 Explosive 2447 | . . 192 . . . . 134 787 . 178 244 . . 244 . 222 . 446 . . . . . Electromagnetic 2389 | . . . . 45 . . . . 92 . . . . . . . . 1241 245 279 128 359 . Impact . | . . . . . . . . . . . . . . . . . . . . . . . . Slashing 631 | . . . . . . . . . . . . . . . 313 . . . 318 . . . . Piercing . | . . . . . . . . . . . . . . . . . . . . . . . . Highest Corruption 31 | . . . . . . . . . . . 1 1 3 3 1 . 7 6 2 . . . 31 Average Corruption 2 | . . . . . . . . . . . 1 1 2 3 1 . 4 2 1 . . . 12 Corruption Purged 16 | . . . . . . . . . . . . . . . 1 . 5 7 3 . . . . Effects 112 | . . . . . . . . . . . 5 17 17 29 3 . 29 5 5 . . . 2 Message Errors 26 | . . . . . . . . . . . 3 1 4 7 . . 8 2 1 . . . . Matter Fused 19 | . . . . . . . . . . . . . 3 7 . . 7 1 . . . . 1 Heat Flow Errors 11 | . . . . . . . . . . . . . 1 6 . . 2 . 2 . . . . Energy Discharges 22 | . . . . . . . . . . . 2 7 3 5 2 . 2 1 . . . . . Parts Rejected 1 | . . . . . . . . . . . . . . . . . 1 . . . . . . Data Loss (minor) 19 | . . . . . . . . . . . . 5 3 3 . . 4 1 2 . . . 1 Data Loss (major) 1 | . . . . . . . . . . . . . . . . . 1 . . . . . . Targeting Errors 13 | . . . . . . . . . . . . 4 3 1 1 . 4 . . . . . . Overload Shots 3 | . . . . . . . . . . . . . . . . . 3 . . . . . . Effects 3 | . . . . . . . . . . . . . . . . . 3 . . . . . . Meltdown 3 | . . . . . . . . . . . . . . . . . 3 . . . . . . Overflow Damage 663 | . . 20 . 13 . . 1 82 229 26 27 3 . 8 . 27 39 5 128 5 50 . . Projectiles 203 | . . . . 13 . . . . 24 . 27 3 . 8 . . 39 . 34 5 50 . . Explosions 366 | . . 20 . . . . 1 82 205 26 . . . . . 27 . 5 . . . . . Melee 94 | . . . . . . . . . . . . . . . . . . . 94 . . . . Knockbacks 18 | . 4 3 . 3 . . 2 . 2 . 3 . 1 . . . . . . . . . . Impact . | . . . . . . . . . . . . . . . . . . . . . . . . Kinetic 15 | . 4 2 . 3 . . 1 . 2 . 2 . 1 . . . . . . . . . . Secondary 3 | . . 1 . . . . 1 . . . 1 . . . . . . . . . . . . Self-Inflicted Damage 147 | . . . . . . . 16 . 49 18 13 . . . . . . 51 . . . . . Shots 5 | . . . . . . . 1 . 1 1 1 . . . . . . 1 . . . . . Rammed 1 | . . . . . . . . . . . . . . . . . . . . . . . 1 Targets Rammed 1 | . . . . . . . . . . . . . . . . . . . . . . . 1 Kicked . | . . . . . . . . . . . . . . . . . . . . . . . . Crushed . | . . . . . . . . . . . . . . . . . . . . . . . . Highest Temperature 300 | . 200 7 90 153 . . 42 68 176 29 108 168 231 252 . 10 108 114 72 39 300 204 . Average Temperature 45 | . 48 3 30 43 . . 15 17 49 8 58 37 80 90 . 7 34 40 28 21 102 55 . Received Heat Transfer 3052 | . 321 45 90 45 . . 198 72 891 153 . 282 6 102 18 6 99 116 93 10 30 190 285 Effects 1 | . . . . . . . . . . . . . . 1 . . . . . . . . . Interference 1 | . . . . . . . . . . . . . . 1 . . . . . . . . . Siege Activations 3 | . . . . . . . . . . . . . . . . . . . . . . 3 . Total Turns 66 | . . . . . . . . . . . . . . . . . . . . . . 66 . Longest Duration 55 | . . . . . . . . . . . . . . . . . . . . . . 55 . Robots Corrupted 10 | . . . . . . . . . . . . . . . . . . 8 . 1 1 . . Combat Hostiles 2 | . . . . . . . . . . . . . . . . . . 1 . 1 . . . Parts Fried 17 | . . . . . . . . . . . . . . . . . . 9 3 1 3 1 . Impact Corruptions . | . . . . . . . . . . . . . . . . . . . . . . . . Robots Melted 1 | . . . . . . . . . . . . . . 1 . . . . . . . . . Combat Hostiles 1 | . . . . . . . . . . . . . . 1 . . . . . . . . . Parts Melted 14 | . . . . . . . . . 1 . 2 1 . 3 2 1 3 . . . 1 . . Heat Transferred 8504 | . 675 . . 880 . . . . 1003 333 1527 1162 . 333 74 298 1395 274 275 . 175 75 25 Parts Sabotaged . | . . . . . . . . . . . . . . . . . . . . . . . . Parts Stolen . | . . . . . . . . . . . . . . . . . . . . . . . . Parts Stripped . | . . . . . . . . . . . . . . . . . . . . . . . . Power Chain Reactions 1 | . . . . . . . . . . . . . . . . . . 1 . . . . . Missiles Intercepted . | . . . . . . . . . . . . . . . . . . . . . . . . Alert | -11 -10 -10 -9 -9 -9 -8 -8 -8 -8 -8 -7 -7 -7 -7 -6 -6 -5 -5 -4 -4 -3 -3 -3 ------- Run | Scr Mat Min Mat Min Exi Min Mat Gar Mat Gar Fac Gar Fac Gar Fac Gar Fac Gar Fac Gar Res Gar Qua Peak Influence 1965 | . 246 178 265 81 . . 164 866 543 612 452 539 450 447 340 717 519 1035 839 548 549 983 1965 Average Influence 363 | . 122 99 105 26 . . 81 600 134 380 157 289 218 314 152 472 335 536 344 378 359 523 1713 Maximum Alert Level 5 | . 1 . 1 . . . . 3 2 2 2 2 2 2 1 3 2 3 3 2 2 3 5 Low Security (%) 26 | 100 81 100 86 100 . 100 100 4 77 20 76 30 30 24 71 7 9 15 24 31 14 28 . Level 1 21 | . 18 . 13 . . . . 13 9 32 8 37 62 31 28 19 78 30 37 13 34 17 . Level 2 28 | . . . . . . . . 39 13 46 15 32 7 43 . 62 12 19 34 54 51 13 . Level 3 21 | . . . . . . . . 42 . . . . . . . 11 . 34 3 . . 40 . Level 4 . | . . . . . . . . . . . . . . . . . . . . . . . . Level 5 . | . . . . . . . . . . . . . . . . . . . . . . . . High Security . | . . . . . . . . . . . . . . . . . . . . . . . . Max Security 2 | . . . . . . . . . . . . . . . . . . . . . . . 99 Squads Dispatched 55 | . 1 . 1 1 . . 3 . 5 . 4 . 3 . 1 . 7 . 10 . 5 . 14 Investigation 5 | . . . 1 1 . . 1 . . . . . . . . . 1 . . . 1 . . Extermination 13 | . . . . . . . . . . . 3 . 2 . 1 . 3 . 3 . 1 . . Reinforcement 14 | . 1 . . . . . 2 . 3 . 1 . 1 . . . 2 . 2 . 2 . . Assault 14 | . . . . . . . . . . . . . . . . . . . 2 . . . 12 Garrison 9 | . . . . . . . . . 2 . . . . . . . 1 . 3 . 1 . 2 Intercept . | . . . . . . . . . . . . . . . . . . . . . . . . Construction Impeded 2 | . . . . . . . . . 1 . . . . . . . 1 . . . . . . Haulers Reinforced 1 | . . . . . . . . . . . . . . . . . . . 1 . . . . Stealth | -11 -10 -10 -9 -9 -9 -8 -8 -8 -8 -8 -7 -7 -7 -7 -6 -6 -5 -5 -4 -4 -3 -3 -3 --------- Run | Scr Mat Min Mat Min Exi Min Mat Gar Mat Gar Fac Gar Fac Gar Fac Gar Fac Gar Fac Gar Res Gar Qua Distress Signals 17 | . 1 1 1 . . . 1 . 5 . 2 . . . . . 2 . 1 . 1 . 2 Communications Jammed 73 | . . . . . . . 73 . . . . . . . . . . . . . . . . Distress Signals 71 | . . . . . . . 71 . . . . . . . . . . . . . . . . Times Spotted 512 | . 18 5 12 9 . . 23 28 50 25 21 22 9 25 12 22 32 28 33 19 23 30 66 Peak Tracking Total 38 | . 6 3 4 3 . . 6 6 8 4 3 4 2 7 3 5 7 5 6 4 5 6 38 Tactical Retreats 40 | . 1 . 1 3 . . 2 3 4 4 1 4 . 3 . 2 3 5 3 . . 1 . Traps | -11 -10 -10 -9 -9 -9 -8 -8 -8 -8 -8 -7 -7 -7 -7 -6 -6 -5 -5 -4 -4 -3 -3 -3 ------- Run | Scr Mat Min Mat Min Exi Min Mat Gar Mat Gar Fac Gar Fac Gar Fac Gar Fac Gar Fac Gar Res Gar Qua Traps Triggered 95 | . . . 1 . . . . 4 1 6 . 10 . 10 3 11 1 15 4 8 1 20 . Indirectly . | . . . . . . . . . . . . . . . . . . . . . . . . Trap Hack Attempts . | . . . . . . . . . . . . . . . . . . . . . . . . Triggered . | . . . . . . . . . . . . . . . . . . . . . . . . Disarmed . | . . . . . . . . . . . . . . . . . . . . . . . . Reprogrammed . | . . . . . . . . . . . . . . . . . . . . . . . . Reused . | . . . . . . . . . . . . . . . . . . . . . . . . Traps Extracted . | . . . . . . . . . . . . . . . . . . . . . . . . Installed . | . . . . . . . . . . . . . . . . . . . . . . . . Triggered . | . . . . . . . . . . . . . . . . . . . . . . . . Exploded 3 | . . . . . . . 1 2 . . . . . . . . . . . . . . . Machines | -11 -10 -10 -9 -9 -9 -8 -8 -8 -8 -8 -7 -7 -7 -7 -6 -6 -5 -5 -4 -4 -3 -3 -3 ---------- Run | Scr Mat Min Mat Min Exi Min Mat Gar Mat Gar Fac Gar Fac Gar Fac Gar Fac Gar Fac Gar Res Gar Qua Machines Disabled 53 | . . . . . . . 1 5 3 5 3 7 . 4 . 4 1 8 1 4 2 4 1 Max in Single Turn 1 | . . . . . . . 1 1 1 1 1 1 . 1 . 1 1 1 . 1 . 1 . Garrison Access 3 | . . . . . . . . . . . . . . . 1 . 1 . 1 . . . . Garrison Relay 32 | . . . . . . . . 4 . 4 . 4 . 4 . 4 . 4 . 4 . 4 . Machines Sabotaged . | . . . . . . . . . . . . . . . . . . . . . . . . Garrisons Compromised . | . . . . . . . . . . . . . . . . . . . . . . . . Overloaded Fab Kills . | . . . . . . . . . . . . . . . . . . . . . . . . Fab Network Shutdowns . | . . . . . . . . . . . . . . . . . . . . . . . . Hacking | -11 -10 -10 -9 -9 -9 -8 -8 -8 -8 -8 -7 -7 -7 -7 -6 -6 -5 -5 -4 -4 -3 -3 -3 --------- Run | Scr Mat Min Mat Min Exi Min Mat Gar Mat Gar Fac Gar Fac Gar Fac Gar Fac Gar Fac Gar Res Gar Qua Machines Accessed 56 | . 4 . 3 1 5 . 8 . 7 . 4 . 3 . 9 . 3 . 8 . 1 . . Terminals 32 | . 4 . 3 . . . 5 . 5 . 2 . 2 . 6 . 1 . 4 . . . . Fabricators . | . . . . . . . . . . . . . . . . . . . . . . . . Repair Stations 5 | . . . . . . . 1 . 1 . . . . . 1 . . . 2 . . . . Recycling Units 1 | . . . . . . . . . . . 1 . . . . . . . . . . . . Scanalyzers 1 | . . . . . . . 1 . . . . . . . . . . . . . . . . Garrison Access 11 | . . . . . . . 1 . 1 . 1 . 1 . 2 . 2 . 2 . 1 . . Total Hacks 189 | . 15 . 11 1 49 . 27 . 21 . 14 . 10 . 15 . 8 . 17 . 1 . . Successful 129 | . 8 . 6 1 49 . 16 . 12 . 6 . 4 . 8 . 6 . 12 . 1 . . Failed 59 | . 7 . 5 . . . 10 . 9 . 8 . 6 . 7 . 2 . 5 . . . . Catastrophic 9 | . 1 . 2 . . . . . 1 . 1 . . . 2 . . . 2 . . . . Database Lockouts 1 | . . . . . . . 1 . . . . . . . . . . . . . . . . Manual 80 | . 10 . 7 . 1 . 17 . 14 . 6 . 6 . 7 . 4 . 8 . . . . Terminals 105 | . 15 . 11 . . . 22 . 16 . 11 . 9 . 10 . 4 . 7 . . . . Fabricators . | . . . . . . . . . . . . . . . . . . . . . . . . Repair Stations 13 | . . . . . . . 2 . 4 . . . . . 2 . . . 5 . . . . Recycling Units 2 | . . . . . . . . . . . 2 . . . . . . . . . . . . Scanalyzers 2 | . . . . . . . 2 . . . . . . . . . . . . . . . . Garrison Access 17 | . . . . . . . 1 . 1 . 1 . 1 . 3 . 4 . 5 . 1 . . Terminal Hacks 76 | . 5 . 4 1 49 . 7 . 2 . 3 . 1 . . . 2 . 2 . . . . Record 49 | . . . 1 . 48 . . . . . . . . . . . . . . . . . . Prototype ID Bank 11 | . 4 . 2 . . . 3 . 1 . . . . . . . 1 . . . . . . Open Door 1 | . . . . 1 . . . . . . . . . . . . . . . . . . . Branch Access Points 1 | . 1 . . . . . . . . . . . . . . . . . . . . . . Emergency Access Points 1 | . . . . . . . . . . . . . 1 . . . . . . . . . . Terminal Index 1 | . . . . . . . . . . . 1 . . . . . . . . . . . . Garrison Index 1 | . . . . . . . 1 . . . . . . . . . . . . . . . . Unreport Threat 3 | . . . . . . . . . 1 . . . . . . . . . 2 . . . . Locate Traps 2 | . . . . . . . . . . . 1 . . . . . 1 . . . . . . Recall Investigation 2 | . . . 1 . . . 1 . . . . . . . . . . . . . . . . Recall Reinforcements 1 | . . . . . . . 1 . . . . . . . . . . . . . . . . Registered Components 1 | . . . . . . . 1 . . . . . . . . . . . . . . . . Zone Layout 1 | . . . . . . . . . . . 1 . . . . . . . . . . . . EX-Prototype ID Bank 1 | . . . . . 1 . . . . . . . . . . . . . . . . . . Fabricator Hacks . | . . . . . . . . . . . . . . . . . . . . . . . . Repair Station Hacks 12 | . . . . . . . 2 . 4 . . . . . 2 . . . 4 . . . . Scan Component 6 | . . . . . . . 1 . 2 . . . . . 1 . . . 2 . . . . Repair 6 | . . . . . . . 1 . 2 . . . . . 1 . . . 2 . . . . Recycling Unit Hacks . | . . . . . . . . . . . . . . . . . . . . . . . . Scanalyzer 2 | . . . . . . . 2 . . . . . . . . . . . . . . . . Insert Component 1 | . . . . . . . 1 . . . . . . . . . . . . . . . . Analyze 1 | . . . . . . . 1 . . . . . . . . . . . . . . . . Garrison Access Hacks 13 | . . . . . . . 1 . 1 . 1 . 1 . 3 . 2 . 3 . 1 . . Unlock Access 8 | . . . . . . . 1 . 1 . 1 . 1 . 1 . 1 . 1 . 1 . . Seal Access 3 | . . . . . . . . . . . . . . . 1 . 1 . 1 . . . . Coupler Status 2 | . . . . . . . . . . . . . . . 1 . . . 1 . . . . Unauthorized Hacks 26 | . 3 . 2 . . . 4 . 5 . 2 . 2 . 3 . 2 . 3 . . . . Terminals 23 | . 3 . 2 . . . 4 . 5 . 2 . 2 . 3 . 1 . 1 . . . . Track 1 | . . . . . . . 1 . . . . . . . . . . . . . . . . Botnet 14 | . 2 . 1 . . . 2 . 3 . 1 . 1 . 2 . 1 . 1 . . . . Disrupt 2 | . . . . . . . . . 2 . . . . . . . . . . . . . . Operators 6 | . 1 . 1 . . . 1 . . . 1 . 1 . 1 . . . . . . . . Fabricators . | . . . . . . . . . . . . . . . . . . . . . . . . Repair Stations . | . . . . . . . . . . . . . . . . . . . . . . . . Recycling Units . | . . . . . . . . . . . . . . . . . . . . . . . . Scanalyzers . | . . . . . . . . . . . . . . . . . . . . . . . . Garrison Access 3 | . . . . . . . . . . . . . . . . . 1 . 2 . . . . Reprogram 3 | . . . . . . . . . . . . . . . . . 1 . 2 . . . . Data Cores Recovered 1 | . . . 1 . . . . . . . . . . . . . . . . . . . . Used . | . . . . . . . . . . . . . . . . . . . . . . . . Hacking Detections 39 | . 4 . 3 . . . 5 . 5 . 3 . 3 . 7 . 2 . 7 . . . . Full Trace Events 1 | . . . . . . . . . . . . . . . . . 1 . . . . . . Feedback Events . | . . . . . . . . . . . . . . . . . . . . . . . . Feedback Blocked . | . . . . . . . . . . . . . . . . . . . . . . . . Robot Schematics Acquired . | . . . . . . . . . . . . . . . . . . . . . . . . Robots Built . | . . . . . . . . . . . . . . . . . . . . . . . . Matter . | . . . . . . . . . . . . . . . . . . . . . . . . Time . | . . . . . . . . . . . . . . . . . . . . . . . . Total Robot Build Rating . | . . . . . . . . . . . . . . . . . . . . . . . . Part Schematics Acquired 1 | . . . . . . . 1 . . . . . . . . . . . . . . . . Parts Built . | . . . . . . . . . . . . . . . . . . . . . . . . Matter . | . . . . . . . . . . . . . . . . . . . . . . . . Time . | . . . . . . . . . . . . . . . . . . . . . . . . Total Part Build Rating . | . . . . . . . . . . . . . . . . . . . . . . . . Parts Repaired 6 | . . . . . . . 1 . 2 . . . . . 1 . . . 2 . . . . Time 218 | . . . . . . . 22 . 64 . . . . . 44 . . . 88 . . . . Parts Recycled . | . . . . . . . . . . . . . . . . . . . . . . . . Recycled Matter . | . . . . . . . . . . . . . . . . . . . . . . . . Retrieved Matter . | . . . . . . . . . . . . . . . . . . . . . . . . Retrieved Components . | . . . . . . . . . . . . . . . . . . . . . . . . Parts Scanalyzed 1 | . . . . . . . 1 . . . . . . . . . . . . . . . . Part Schematics Acquired 1 | . . . . . . . 1 . . . . . . . . . . . . . . . . Parts Damaged . | . . . . . . . . . . . . . . . . . . . . . . . . Bothacking | -11 -10 -10 -9 -9 -9 -8 -8 -8 -8 -8 -7 -7 -7 -7 -6 -6 -5 -5 -4 -4 -3 -3 -3 ------------ Run | Scr Mat Min Mat Min Exi Min Mat Gar Mat Gar Fac Gar Fac Gar Fac Gar Fac Gar Fac Gar Res Gar Qua Used RIF Installer 8 | . . . . . . . . 1 . 1 . 1 . 1 . 1 . 1 . 1 . 1 . Coupler Efficiency 2 | . . . . . . . . . . . . 1 . . . 1 . . . . . . . Robot Detection 1 | . . . . . . . . . . 1 . . . . . . . . . . . . . Patrol Navigation 1 | . . . . . . . . . . . . . . . . . . . . 1 . . . Structural Interface 1 | . . . . . . . . . . . . . . 1 . . . . . . . . . Program Shield 1 | . . . . . . . . . . . . . . . . . . 1 . . . . . Autoassimilate 1 | . . . . . . . . . . . . . . . . . . . . . . 1 . Robots Hacked 143 | . . . . . . . . 6 7 9 4 10 4 8 6 9 12 15 7 11 8 19 8 Non-combat 11 | . . . . . . . . . 1 . 3 . 1 . . . 4 . 1 . 1 . . Combat 132 | . . . . . . . . 6 6 9 1 10 3 8 6 9 8 15 6 11 7 19 8 Autoassimilated 5 | . . . . . . . . . . . . . . . . . . . . . . 2 3 Robot Hacks Applied 164 | . . . . . . . . 6 9 9 10 10 6 9 6 9 15 15 11 11 16 17 5 map_walls 2 | . . . . . . . . . . . . . . . . . 2 . . . . . . purge_threat 19 | . . . . . . . . . 3 . 2 . 1 . . . 3 . 3 . 7 . . locate_traps 5 | . . . . . . . . . . . 2 . 1 . . . . . 1 . 1 . . block_reporting 2 | . . . . . . . . . . . 2 . . . . . . . . . . . . clear_recycling 2 | . . . . . . . . . . . 1 . . . . . . . . . 1 . . map_route 1 | . . . . . . . . . . . . . . . . . 1 . . . . . . find_garrison 1 | . . . . . . . . . . . . . . . 1 . . . . . . . . link_fov 2 | . . . . . . . . . . . 1 . 1 . . . . . . . . . . scatter_targeting 2 | . . . . . . . . . . . . . . . 1 . . 1 . . . . . overload_power 1 | . . . . . . . . . . . 1 . . . . . . . . . . . . amplify_resonance 25 | . . . . . . . . . 1 4 . 3 1 4 . 1 1 2 2 3 2 . 1 reboot_system 9 | . . . . . . . . 2 1 1 . . 1 1 1 . . 1 . . . 1 . overwrite_iff 17 | . . . . . . . . 1 4 1 . 2 . . . . . . 4 . . 1 4 formatsys_high 76 | . . . . . . . . 3 . 3 1 5 1 4 3 8 8 11 1 8 5 15 . Relay Couplers Released 136 | . . . . . . . . 16 . 17 . 16 . 15 1 16 2 19 4 15 . 15 . Machine Destruction 136 | . . . . . . . . 16 . 17 . 16 . 15 1 16 2 19 4 15 . 15 . Attached 67 | . . . . . . . . 3 3 5 2 4 3 5 2 4 4 8 3 6 3 9 3 Robots Rewired 7 | . . . . . . . . . . . . . . . . . . 7 . . . . . Allies Hacked 3 | . . . . . . . . . . . . . . . . . 3 . . . . . . Hacks Repelled . | . . . . . . . . . . . . . . . . . . . . . . . . Allies | -11 -10 -10 -9 -9 -9 -8 -8 -8 -8 -8 -7 -7 -7 -7 -6 -6 -5 -5 -4 -4 -3 -3 -3 -------- Run | Scr Mat Min Mat Min Exi Min Mat Gar Mat Gar Fac Gar Fac Gar Fac Gar Fac Gar Fac Gar Res Gar Qua Total Allies 111 | . . . . . . . . 4 4 4 1 7 1 4 3 8 10 18 9 8 5 18 7 Largest Group 19 | . . . . . . . . 4 2 3 3 5 5 2 3 7 8 19 19 8 9 17 17 Highest-Rated Group 1039 | . . . . . . . . 65 34 45 45 144 144 64 93 218 267 690 690 398 462 1013 1039 Highest-Rated Ally 115 | . . . . . . . . 18 18 15 29 32 32 32 81 81 49 49 58 56 64 115 115 Total Orders 156 | . . . . . . . . 4 . 7 . 11 4 8 5 13 5 28 . 18 10 43 . STAY 76 | . . . . . . . . 2 . 4 . 6 2 5 2 9 1 14 . 11 1 19 . GOTO 22 | . . . . . . . . . . . . . . . . . 2 . . . 7 13 . FOLLOW 58 | . . . . . . . . 2 . 3 . 5 2 3 3 4 2 14 . 7 2 11 . Ally Attacks 713 | . . . . . . . . 20 49 13 6 14 17 24 34 26 42 61 120 34 90 76 87 Total Damage 21804 | . . . . . . . . 513 592 198 126 526 631 735 756 694 1130 1521 2675 959 3717 2815 4216 Kills 141 | . . . . . . . . 6 3 3 1 4 7 7 4 9 12 15 15 8 20 11 16 Allies Corrupted 8 | . . . . . . . . . . . . . . . 1 . 1 . 2 . . . 4 Allies Melted . | . . . . . . . . . . . . . . . . . . . . . . . . Intel | -11 -10 -10 -9 -9 -9 -8 -8 -8 -8 -8 -7 -7 -7 -7 -6 -6 -5 -5 -4 -4 -3 -3 -3 ------- Run | Scr Mat Min Mat Min Exi Min Mat Gar Mat Gar Fac Gar Fac Gar Fac Gar Fac Gar Fac Gar Res Gar Qua Robot Analysis Total . | . . . . . . . . . . . . . . . . . . . . . . . . Derelict Logs Recovered 4 | . . 3 . 1 . . . . . . . . . . . . . . . . . . . Drone Launches . | . . . . . . . . . . . . . . . . . . . . . . . . Drone Recoveries . | . . . . . . . . . . . . . . . . . . . . . . . . Exploration | -11 -10 -10 -9 -9 -9 -8 -8 -8 -8 -8 -7 -7 -7 -7 -6 -6 -5 -5 -4 -4 -3 -3 -3 ------------- Run | Scr Mat Min Mat Min Exi Min Mat Gar Mat Gar Fac Gar Fac Gar Fac Gar Fac Gar Fac Gar Res Gar Qua Turns Passed 40348 | 88 714 566 419 719 596 582 1273 1876 1616 2760 2021 2899 1157 1669 1399 2452 1445 5275 1917 2196 789 5697 223 Spaces Moved 21613 | 52 418 480 262 527 524 415 824 1486 850 1409 1020 1079 722 1018 766 1232 715 2459 1171 1184 415 2493 92 Core 6 | 6 . . . . . . . . . . . . . . . . . . . . . . . Treads 2575 | 46 110 . . . . . . . 3 249 202 333 20 77 . . . . . . 59 1390 86 Legs 4551 | . . . . . . . . . . . . . . . 654 1232 715 1950 . . . . . Wheels 14481 | . 308 480 262 527 524 415 824 1486 847 1160 818 746 702 941 112 . . 509 1171 1184 356 1103 6 Hover . | . . . . . . . . . . . . . . . . . . . . . . . . Flight . | . . . . . . . . . . . . . . . . . . . . . . . . Fastest Speed 50 | 50 90 100 100 110 110 130 110 110 103 110 130 130 130 130 120 150 150 110 110 110 120 140 150 Average Speed 138 | 147 111 108 108 110 111 130 114 110 119 143 157 177 137 146 149 150 150 143 113 117 153 164 170 Slowest Speed 280 | 160 160 120 120 130 130 130 130 125 220 240 280 280 240 240 270 180 150 190 120 120 245 245 185 Overloaded Moves . | . . . . . . . . . . . . . . . . . . . . . . . . Propulsion Burnouts . | . . . . . . . . . . . . . . . . . . . . . . . . Robots Hopped . | . . . . . . . . . . . . . . . . . . . . . . . . Cave-ins Triggered . | . . . . . . . . . . . . . . . . . . . . . . . . Exploration Rate (%) 60 | 4 78 94 31 70 92 92 49 63 67 74 28 88 25 95 26 98 19 96 33 98 16 98 23 Regions Visited 23 Branch Regions 5 Pre-discovered Areas 1 | . . . . . 1 . . . . . . . . . . . . . . . . . . Known Exits Taken 12 | . 1 . 1 . 1 1 1 . 1 . 1 . 1 . 1 . 1 . 1 . 1 . . Unknown Exits Taken 3 | 1 . 1 . 1 . . . . . . . . . . . . . . . . . . . Scrap Searched 4 | . . 2 . 1 . 1 . . . . . . . . . . . . . . . . . Spaces Dug 145 | . . . . . . . 3 . 7 1 31 . 16 1 17 . 11 5 33 . 1 19 . Terrain Destroyed 373 | . . 24 . 1 . . 14 25 30 5 84 3 17 10 17 27 13 44 36 . 2 21 . Melee 136 | . . . . . . . 3 . 1 1 29 . 15 1 17 . 11 5 33 . 1 19 . Projectile 32 | . . . . 1 . . . . 12 . 5 3 2 . . 1 2 . 3 . 1 2 . AOE 205 | . . 24 . . . . 11 25 17 4 50 . . 9 . 26 . 39 . . . . . Actions | -11 -10 -10 -9 -9 -9 -8 -8 -8 -8 -8 -7 -7 -7 -7 -6 -6 -5 -5 -4 -4 -3 -3 -3 --------- Run | Scr Mat Min Mat Min Exi Min Mat Gar Mat Gar Fac Gar Fac Gar Fac Gar Fac Gar Fac Gar Res Gar Qua Total 30576 | 61 550 503 346 607 543 457 1069 1674 1312 2052 1299 1972 834 1180 961 1738 1002 4115 1655 1970 545 3977 154 Wait 6194 | . 38 6 42 17 1 42 139 74 270 475 132 736 32 53 74 347 171 1216 329 666 62 1239 33 Move 21597 | 51 417 479 261 526 523 414 824 1485 850 1408 1020 1078 722 1017 766 1231 715 2458 1171 1182 415 2492 92 Hop . | . . . . . . . . . . . . . . . . . . . . . . . . Pick Up 248 | 4 6 3 6 6 8 1 19 12 18 18 8 15 9 19 6 8 6 19 11 9 9 28 . Fast Attach 97 | 6 6 . 2 3 1 . 5 3 15 4 2 . 3 . 10 1 4 9 10 . 3 10 . Attach 121 | . 3 1 1 8 2 . 3 6 11 8 5 12 . 7 3 6 5 9 4 3 5 13 6 Detach 50 | . 3 . . . 2 . 1 4 7 2 1 2 . 1 3 2 1 7 1 . 3 9 1 Swap 256 | . 4 2 4 3 1 . 7 9 15 13 29 7 14 10 20 13 20 20 31 7 6 19 2 Drop 225 | . 10 . 2 2 5 . 20 9 23 6 11 4 14 15 17 4 13 22 13 4 4 27 . Fire 1081 | . 63 12 28 42 . . 40 48 102 80 62 90 25 35 31 87 54 101 36 30 35 61 19 Melee 188 | . . . . . . . 11 . 1 2 29 . 15 3 21 . 12 6 47 1 1 39 . Ram 1 | . . . . . . . . . . . . . . . . . . . . . . . 1 Kick . | . . . . . . . . . . . . . . . . . . . . . . . . Crush . | . . . . . . . . . . . . . . . . . . . . . . . . Escape Stasis 327 | . . . . . . . . 24 . 36 . 28 . 20 10 39 . 75 . 64 . 31 . Rewire 191 | . . . . . . . . . . . . . . . . . 1 173 2 4 2 9 . Trap . | . . . . . . . . . . . . . . . . . . . . . . . . Miscellaneous . | . . . . . . . . . . . . . . . . . . . . . . . . Route ------- -11/Scrapyard -10/Materials (discovered 3 exits: *Mat / *Min x2) -10/Mines (discovered 2 exits: *Mat x2) -9/Materials (discovered 2 exits: Mat / *Min) -9/Mines (discovered 2 exits: Mat / *Exi) -9/Exiles -8/Mines -8/Materials -8/Garrison (discovered 3 exits: *Mat x3) -8/Materials (discovered 3 exits: *Fac x2 / Gar) -8/Garrison (discovered 3 exits: *Fac x3) -7/Factory (discovered 3 exits: [*Sto] / [*Low] / Gar) -7/Garrison (discovered 3 exits: *Fac x3) -7/Factory (discovered 2 exits: *Fac / Gar) -7/Garrison (discovered 3 exits: *Fac x3) -6/Factory (discovered 2 exits: *Fac / Gar) -6/Garrison (discovered 3 exits: *Fac x3) -5/Factory (discovered 2 exits: *Fac / Gar) -5/Garrison (discovered 3 exits: *Fac x3) -4/Factory (discovered 3 exits: *Res / [*Upp] / Gar) -4/Garrison (discovered 3 exits: *Res x3) -3/Research -3/Garrison (discovered 3 exits: [*Qua x3]) -3/Quarantine History --------- Turn | Location | Event 6 | -11/Scrapyard | Discovered new exit (range 15) 89 | -11/Scrapyard | Entered Materials 229 | -10/Materials | Discovered new exit (range 10) 308 | -10/Materials | Build established: Mutant 556 | -10/Materials | Core integrity fell below 50% 585 | -10/Materials | Discovered new exit (range 13) 726 | -10/Materials | Identified exit to Mines 803 | -10/Materials | Entered Mines 812 | -10/Mines | Discovered new exit (range 12) 849 | -10/Mines | Learned location of 1 exit from Materials 908 | -10/Mines | Discovered new exit (range 7) 912 | -10/Mines | Learned Materials emergency access door positions 1369 | -10/Mines | Entered Materials 1369 | -9/Materials | Evolved 2 slots: Utility x2 1370 | -9/Materials | Identified exit to Mines 1371 | -9/Materials | Identified exit to Materials 1788 | -9/Materials | Entered Mines 1789 | -9/Mines | Discovered exit to Materials (range 16) 1797 | -9/Mines | Met a Derelict bent on vengeance 1835 | -9/Mines | Learned Materials stockpile data 1960 | -9/Mines | A weapon hastily lodged in a ceiling crevice suddenly fell to the ground 1989 | -9/Mines | Deemed a non-threat by the Exiles lab entrance 2023 | -9/Mines | Assisted by bots powering up and referring to "LRC-V3" 2086 | -9/Mines | Destroyed YI-UF0 2113 | -9/Mines | Lost 11 parts (2p2n3u4w) 2382 | -9/Mines | Met a Derelict shopkeep closing up shop 2503 | -9/Mines | Discovered new exit (range 5) 2507 | -9/Mines | Entered Exiles 2508 | -9/Exiles | Identified exit to Mines 2538 | -9/Exiles | Met 8R-AWN 2557 | -9/Exiles | Met EX-HEX 2634 | -9/Exiles | Met EX-DEC 2657 | -9/Exiles | Visited The Gauntlet 2803 | -9/Exiles | Met EX-BIN 2883 | -9/Exiles | Aligned with FarCom system 2884 | -9/Exiles | Given EX-Vault access code 2910 | -9/Exiles | Opened EX-Vault 2920 | -9/Exiles | Found Gui. Plasma Cannon 2943 | -9/Exiles | Warned to stay clear of 0b10 Research branches 2982 | -9/Exiles | Learned location of Zion (-7) 3103 | -9/Exiles | Left Exiles lab with Gui. Plasma Cannon 3103 | -9/Exiles | Entered Mines 3306 | -8/Mines | Discovered exit to Materials (range 9) 3348 | -8/Mines | Build established: Hauler-Mutant 3685 | -8/Mines | Entered Materials 3685 | -8/Materials | Evolved 2 slots: Propulsion x1, Utility x1 4720 | -8/Materials | Central database locked down 4848 | -8/Materials | Repaired Imp. Medium Armor Plating 4958 | -8/Materials | Identified exit to Garrison 4958 | -8/Materials | Entered Garrison 5012 | -8/Garrison | Triggered checkpoint 5139 | -8/Garrison | Discovered new exit (range 15) 5202 | -8/Garrison | Triggered checkpoint 5311 | -8/Garrison | Discovered new exit (range 15) 5334 | -8/Garrison | Installed Relay Interface Framework 5362 | -8/Garrison | Triggered checkpoint 5434 | -8/Garrison | Garrison Relay disabled 5718 | -8/Garrison | Triggered checkpoint 5767 | -8/Garrison | Garrison Relay disabled 5874 | -8/Garrison | Triggered checkpoint 5971 | -8/Garrison | Discovered new exit (range 10) 6088 | -8/Garrison | Triggered checkpoint 6091 | -8/Garrison | Garrison Relay disabled 6194 | -8/Garrison | Triggered checkpoint 6224 | -8/Garrison | Garrison Relay disabled 6330 | -8/Garrison | Identified exit to Materials 6363 | -8/Garrison | Build established: Bothacker-Mutant 6834 | -8/Garrison | Entered Materials 6834 | -8/Materials | Accompanied by 2 allies 7029 | -8/Materials | Garrison activated, responded to threat 7142 | -8/Materials | Lost 3 parts (1p2n) 7214 | -8/Materials | Destroyed 8 combat bots 7252 | -8/Materials | Lost 6 parts (1p1n2u2w) 7396 | -8/Materials | Discovered new exit (range 10) 7882 | -8/Materials | Repaired Hrd. Medium Armor Plating 7910 | -8/Materials | Repaired Com. Wheel 8208 | -8/Materials | Discovered new exit (range 15) 8287 | -8/Materials | Garrison activated, responded to threat 8435 | -8/Materials | Core integrity fell below 50% 8450 | -8/Materials | Identified exit to Garrison 8450 | -8/Materials | Entered Garrison 8456 | -8/Garrison | Expanded RIF knowledge: Robot Detection 8518 | -8/Garrison | Triggered checkpoint 8623 | -8/Garrison | Garrison Relay disabled 9322 | -8/Garrison | Triggered checkpoint 9625 | -8/Garrison | Discovered new exit (range 12) 9658 | -8/Garrison | Triggered checkpoint 9688 | -8/Garrison | Garrison Relay disabled 9916 | -8/Garrison | Triggered checkpoint 10026 | -8/Garrison | Triggered checkpoint 10079 | -8/Garrison | Garrison Relay disabled 10133 | -8/Garrison | Triggered checkpoint 10360 | -8/Garrison | Discovered new exit (range 10) 10518 | -8/Garrison | Triggered checkpoint 10564 | -8/Garrison | Triggered checkpoint 10606 | -8/Garrison | Lost 4 parts (1p1n2w) 10894 | -8/Garrison | Garrison Relay disabled 10964 | -8/Garrison | Discovered new exit (range 10) 11210 | -8/Garrison | Entered Factory 11210 | -7/Factory | Accompanied by 3 allies 11210 | -7/Factory | Evolved 2 slots: Utility x2 11729 | -7/Factory | Discovered new exit (range 8) 12842 | -7/Factory | Discovered new exit (range 3) 13231 | -7/Factory | Identified exit to Garrison 13231 | -7/Factory | Entered Garrison 13238 | -7/Garrison | Expanded RIF knowledge: Coupler Efficiency 13263 | -7/Garrison | Triggered checkpoint 13486 | -7/Garrison | Garrison Relay disabled 13880 | -7/Garrison | Triggered checkpoint 14107 | -7/Garrison | Triggered checkpoint 14358 | -7/Garrison | Garrison Relay disabled 14713 | -7/Garrison | Discovered new exit (range 13) 14835 | -7/Garrison | Triggered checkpoint 14950 | -7/Garrison | Triggered checkpoint 15095 | -7/Garrison | Discovered new exit (range 9) 15190 | -7/Garrison | Triggered checkpoint 15311 | -7/Garrison | Garrison Relay disabled 15489 | -7/Garrison | Discovered new exit (range 9) 15526 | -7/Garrison | Triggered checkpoint 15695 | -7/Garrison | Garrison Relay disabled 15752 | -7/Garrison | Triggered checkpoint 16130 | -7/Garrison | Entered Factory 16130 | -7/Factory | Accompanied by 5 allies 16363 | -7/Factory | Discovered new exit (range 9) 16432 | -7/Factory | P-60 Hacker assimilated allied Guardian 4b 17285 | -7/Factory | Identified exit to Garrison 17287 | -7/Factory | Entered Garrison 17287 | -7/Garrison | Accompanied by 1 ally 17422 | -7/Garrison | Triggered checkpoint 17442 | -7/Garrison | Garrison Relay disabled 17526 | -7/Garrison | Triggered checkpoint 17578 | -7/Garrison | Triggered checkpoint 17594 | -7/Garrison | Triggered checkpoint 17696 | -7/Garrison | Triggered checkpoint 17795 | -7/Garrison | Discovered new exit (range 8) 17809 | -7/Garrison | Triggered checkpoint 17831 | -7/Garrison | Garrison Relay disabled 17974 | -7/Garrison | Triggered checkpoint 18006 | -7/Garrison | Garrison Relay disabled 18048 | -7/Garrison | Discovered new exit (range 10) 18173 | -7/Garrison | Discovered new exit (range 8) 18189 | -7/Garrison | Expanded RIF knowledge: Structural Interface 18224 | -7/Garrison | Garrison Relay disabled 18492 | -7/Garrison | Build established: Botlord-Mutant 18956 | -7/Garrison | Entered Factory 18956 | -6/Factory | Accompanied by 2 allies 18956 | -6/Factory | Evolved 2 slots: Propulsion x1, Utility x1 19241 | -6/Factory | Discovered new exit (range 9) 19481 | -6/Factory | Repaired Chainsword 20329 | -6/Factory | Spotted B-75 Beast 20340 | -6/Factory | Assimilated Beast 5a with formatsys_high 20355 | -6/Factory | Identified exit to Garrison 20355 | -6/Factory | Entered Garrison 20355 | -6/Garrison | Accompanied by 1 ally 20363 | -6/Garrison | Expanded RIF knowledge: Coupler Efficiency 20640 | -6/Garrison | Triggered checkpoint 20657 | -6/Garrison | Garrison Relay disabled 20789 | -6/Garrison | Triggered checkpoint 20898 | -6/Garrison | Discovered new exit (range 10) 20962 | -6/Garrison | Triggered checkpoint 21005 | -6/Garrison | Garrison Relay disabled 21193 | -6/Garrison | Triggered checkpoint 21721 | -6/Garrison | Discovered new exit (range 7) 21756 | -6/Garrison | Triggered checkpoint 22017 | -6/Garrison | Garrison Relay disabled 22333 | -6/Garrison | Triggered checkpoint 22410 | -6/Garrison | Discovered new exit (range 5) 22494 | -6/Garrison | Triggered checkpoint 22517 | -6/Garrison | Garrison Relay disabled 22807 | -6/Garrison | Entered Factory 22807 | -5/Factory | Accompanied by 7 allies 22807 | -5/Factory | Evolved 2 slots: Utility x2 23152 | -5/Factory | Garrison activated, responded to threat 23388 | -5/Factory | Discovered new exit (range 6) 24236 | -5/Factory | Identified exit to Garrison 24252 | -5/Factory | Entered Garrison 24252 | -5/Garrison | Accompanied by 2 allies 24390 | -5/Garrison | Triggered checkpoint 24452 | -5/Garrison | Garrison Relay disabled 25111 | -5/Garrison | Triggered checkpoint 25120 | -5/Garrison | Triggered checkpoint 25689 | -5/Garrison | Discovered new exit (range 5) 25710 | -5/Garrison | Expanded RIF knowledge: Program Shield 25746 | -5/Garrison | Triggered checkpoint 25760 | -5/Garrison | Garrison Relay disabled 25910 | -5/Garrison | Triggered checkpoint 26344 | -5/Garrison | Triggered checkpoint 27303 | -5/Garrison | Triggered checkpoint 27471 | -5/Garrison | Discovered new exit (range 10) 27621 | -5/Garrison | Garrison Relay disabled 28062 | -5/Garrison | Triggered checkpoint 28078 | -5/Garrison | Discovered new exit (range 12) 28154 | -5/Garrison | Garrison Relay disabled 29527 | -5/Garrison | Entered Factory 29527 | -4/Factory | Accompanied by 19 allies 29527 | -4/Factory | Evolved 2 slots: Utility x2 29759 | -4/Factory | Discovered new exit (range 7) 29777 | -4/Factory | First assault squad dispatched 29794 | -4/Factory | Garrison activated, responded to threat 30075 | -4/Factory | Repaired Imp. Medium Armor Plating 30384 | -4/Factory | Repaired Imp. Cooling System 30995 | -4/Factory | Discovered new exit (range 6) 31080 | -4/Factory | Garrison activated, responded to threat 31262 | -4/Factory | Identified exit to Garrison 31304 | -4/Factory | Build established: Botlord-Assassin 31444 | -4/Factory | Entered Garrison 31444 | -4/Garrison | Accompanied by 4 allies 31516 | -4/Garrison | Triggered checkpoint 31560 | -4/Garrison | Garrison Relay disabled 32119 | -4/Garrison | Spotted B-86 Titan 32134 | -4/Garrison | Triggered checkpoint 32141 | -4/Garrison | Allies destroyed B-86 Titan 32298 | -4/Garrison | Garrison Relay disabled 32314 | -4/Garrison | Discovered new exit (range 9) 32344 | -4/Garrison | Expanded RIF knowledge: Patrol Navigation 32376 | -4/Garrison | Triggered checkpoint 32431 | -4/Garrison | Triggered checkpoint 32438 | -4/Garrison | Build established: Botlord-Mutant 32524 | -4/Garrison | Garrison Relay disabled 32576 | -4/Garrison | Triggered checkpoint 32656 | -4/Garrison | Discovered new exit (range 9) 32682 | -4/Garrison | Triggered checkpoint 32746 | -4/Garrison | Garrison Relay disabled 32884 | -4/Garrison | Discovered new exit (range 14) 33312 | -4/Garrison | Triggered checkpoint 33640 | -4/Garrison | Entered Research 33640 | -3/Research | Accompanied by 8 allies 33640 | -3/Research | Evolved 2 slots: Utility x2 33788 | -3/Research | Spotted B-86 Titan 33801 | -3/Research | Allies destroyed B-86 Titan 34307 | -3/Research | Garrison activated, responded to threat 34419 | -3/Research | Identified exit to Garrison 34429 | -3/Research | Entered Garrison 34429 | -3/Garrison | Accompanied by 4 allies 34436 | -3/Garrison | Expanded RIF knowledge: Autoassimilate 34554 | -3/Garrison | Triggered checkpoint 34588 | -3/Garrison | Garrison Relay disabled 34774 | -3/Garrison | Spotted B-86 Titan 34783 | -3/Garrison | Assimilated Titan 8a with formatsys_high 35959 | -3/Garrison | Spotted B-86 Titan 36035 | -3/Garrison | Allies destroyed B-86 Titan 36154 | -3/Garrison | Triggered checkpoint 36168 | -3/Garrison | Triggered checkpoint 36432 | -3/Garrison | Triggered checkpoint 37486 | -3/Garrison | Discovered new exit (range 12) 37625 | -3/Garrison | Garrison Relay disabled 37792 | -3/Garrison | Triggered checkpoint 37834 | -3/Garrison | Triggered checkpoint 38194 | -3/Garrison | Triggered checkpoint 38208 | -3/Garrison | Discovered new exit (range 11) 38329 | -3/Garrison | Garrison Relay disabled 38546 | -3/Garrison | Triggered checkpoint 38627 | -3/Garrison | Discovered new exit (range 14) 38695 | -3/Garrison | Garrison Relay disabled 39577 | -3/Garrison | Found Adv. Powered Armor 39580 | -3/Garrison | Found Adv. Powered Armor 39583 | -3/Garrison | Found Adv. Powered Armor 40126 | -3/Garrison | Entered Quarantine 40126 | -3/Quarantine | Accompanied by 17 allies 40127 | -3/Quarantine | Maximum security lockdown engaged 40201 | -3/Quarantine | Build established: Botlord-Assassin 40236 | -3/Quarantine | Garrison activated, responded to threat 40317 | -3/Quarantine | System corruption reached 10% 40335 | -3/Quarantine | Core integrity fell below 50% 40344 | -3/Quarantine | Core integrity fell below 20% 40349 | -3/Quarantine | System corruption reached 30% 40349 | -3/Quarantine | Spotted Investigator 40349 | -3/Quarantine | Spotted Striker 40349 | -3/Quarantine | Destroyed by P-80 Master with Gamma Rifle Last Messages --------------- 40333_ P-80 Master resets B-74 Champion, system corruption cleaned. 40334_ Relay Coupler [Demolisher] destroyed. 40334_ System corrupted by crushing effect (+1). 40335_ Relay Coupler [Swarmer] destroyed. 40336_ S-43 Plague emerges from the garrison. 40336_ Hcp. Storage Unit destroyed. 40337_ B-74 Champion suffers critical hit. 40337_ P-80 Master resets L-61 Swordsman, system corruption cleaned. 40338_ M-36 Artificer fits Backup Laser VII on B-74 Champion. 40339_ Hcp. Storage Unit destroyed. 40340_ P-80 Master resets B-74 Champion, system corruption cleaned. 40344_ P-80 Master resets L-61 Swordsman, system corruption cleaned. 40345_ P-80 Master resets B-74 Champion, system corruption cleaned. 40347_ P-80 Master resets L-61 Swordsman, system corruption cleaned. 40348_ System corrupted: Matter fused (-7). 40348_ Hcp. Storage Unit destroyed. 40348_ System corrupted by crushing effect (+2). 40348_ P-80 Master resets B-74 Champion, system corruption cleaned. 40349_ Slammed into Striker. 40349_ Slug penetrates L-61 Swordsman. Map ----- +----------------------------------------------------+ | ?????????????????????????? ??#????????# #?? | | ??????????????????#?? ?? ????????#????# #?? | | ????????????????#?????????????????????# #?? | | ??????????????????????????????????????# #?? | | ??????????????????????#???????????????# ##? | | ????????????????????????????????? ##### #?? | | ?????????????????????????????? ???# =### | | ????????????????????????????? ????# " % | | ?????????????????????????????"" ??+ ""[% | | ????????????????????????#???? ????# [=! | | ??????????????????#?#???????"?????# =%[ ### | | ??????????????????????????????? ? ## =%#### | | ???????????????????????????? ??????# # | | ?????????????????????#???????#?????# # | | ??????????????????????#????????????# | | ????????????????????????#??????????# #??? | | ????????????????????#??????????????# [!#??? | | ????????????????????????###+####??##=*!#??? | | ????????????????????????#] #???#[%!#?#? | | ??????????????????#??#??# #???#===#??? | | ?????????????????????#??# #??##%=!#### | | ????????????????????????# #?#!#[%*%=[# | | ???????????????########## [ ###[#=!%=[%# | | ???????????????#"""G"""#??d ##/=[=[!%[*# | | ??????????????##"""K"""#####/###%**%=%=%#*! | | ??????????????#msg@blYpblbgg[%%*%==%=%=%[*% | | ??????????????# sglhpggggYl m!%!=%!%!*%!=*= | | ??????????????# scbpmpYYpgg ]=%!=%=%%== ! | | ??????????????# ##############/%!! %## | | ??????????????# ?????#??????# | | ??????????????# ????????????# | | ??????????????# ????????????# | | ??????????????# ???##???????## # | | ??????????????#"""?????????????# | | ???????????????????????????????## | | ???????????????????????#????????#! ! # | | ????????????????????????????????# !# | | ????????????????????????????????########### | | ??????????????????????????????????????????? | | ??????????????????????????????????????????? | | ??????????????????????????????????????????? | | ??????????????????????????????????????????? | | ????????????????????????????????#?????#???? | | ??????????????????????????????????????????? | | ??????????????????????????????#???????????? | | ??????????????????????????????????????????? | | ??????????????????????????????????????????? | | ??????????????????????????????????????????? | | ??????????????????????????????????????????? | | ??????????????????????????????????????????? | +----------------------------------------------------+ Best States ------------- Heat Dissipation 89 Coolant Potential 65 Energy Generation 23 Energy Capacity 340 Matter Stores 300 Matter Capacity 300 Sight Range 16 Terrain Scan Range 24 Terrain Scan Density 10 Jamming Range 8 EM Shielding 2 Armor Coverage 1650 Evasion (%) 42 Recoil Reduction 4 Kinecelleration 30 Offensive Hacking 14 Item Schematics ----------------- Humpback | -8/Materials | Scanalyzed Robot Schematics ------------------ None Fabricated ------------ Nothing Alien Tech Used ----------------- None Achievements -------------- None Challenges ------------ None Game ------ Seed DeliveryMolecularFirepult Manual? 0 Play Time 06:17:26 Cumulative 137.0 hours Start 2020.06.07 @ 16:07:26 End 2020.06.08 @ 22:41:53 Sessions 5 Manual Loads 0 Difficulty Rogue Special Mode None Game No. 79 Rogue 78 Adventurer 1 Explorer 0 Win Type - Total 3 Types 2/0/0/1/0/0/0 Lore% 67 Gallery% 75 Achievement% 50 Wizard Run 0 Options --------- ASCII 1 Keyboard 1 Movement Numpad Keybinds 0 Fullscreen 2 Font 24/Smallcaps Map View 76x50 Tactical HUD 1 Map Filters NONE Filters NONE Steam 1 RUN: fc4c62d7-bb22-440d-a947-972cb92fdf8c